[Event "December 5 Early 2023"]
[Site "https://www.chess.com"]
[Date "2023.12.05"]
[Round "11"]
[White "Timerkhanov, Alexander"]
[Black "Vasquez Schroeder, Rodrigo"]
[Result "0-1"]
[Board "27"]
[TimeControl "180+1"]
[WhiteFideId "24177938"]
[BlackFideId "3400042"]
[WhiteElo "2659"]
[BlackElo "2907"]
[WhiteTeam "RUS"]
[BlackTeam "CHI"]
[WhiteClock "0:00:00"]
[BlackClock "0:00:06"]

1. d4 {[%clk 0:03:00]}  Nf6 {[%clk 0:02:53]} 2. Bg5 {[%clk 0:03:01]}  e6 {[%clk 0:02:53]} 3. Nd2 {[%clk 0:03:01]}  h6 {[%clk 0:02:53]} 4. Bh4 {[%clk 0:03:00]}  d6 {[%clk 0:02:51]} 5. e4 {[%clk 0:03:00]}  Nbd7 {[%clk 0:02:50]} 6. Bd3 {[%clk 0:02:59]}  e5 {[%clk 0:02:49]} 7. c3 {[%clk 0:02:59]}  Be7 {[%clk 0:02:50]} 8. Ngf3 {[%clk 0:02:58]}  Nh5 {[%clk 0:02:42]} 9. Bg3 {[%clk 0:02:56]}  Nxg3 {[%clk 0:02:41]} 10. hxg3 {[%clk 0:02:57]}  c6 {[%clk 0:02:41]} 11. Qc2 {[%clk 0:02:56]}  Qc7 {[%clk 0:02:39]} 12. Nf1 {[%clk 0:02:56]}  g6 {[%clk 0:02:33]} 13. Ne3 {[%clk 0:02:55]}  Nf6 {[%clk 0:02:33]} 14. O-O-O {[%clk 0:02:51]}  b5 {[%clk 0:02:31]} 15. Kb1 {[%clk 0:02:43]}  a6 {[%clk 0:02:27]} 16. Qe2 {[%clk 0:02:26]}  Bb7 {[%clk 0:02:15]} 17. g4 {[%clk 0:02:21]}  O-O-O {[%clk 0:02:13]} 18. Bc2 {[%clk 0:02:14]}  c5 {[%clk 0:02:05]} 19. d5 {[%clk 0:02:13]}  Nd7 {[%clk 0:01:56]} 20. Rh2 {[%clk 0:02:07]}  Bf6 {[%clk 0:01:54]} 21. Re1 {[%clk 0:02:05]}  Bg7 {[%clk 0:01:54]} 22. Reh1 {[%clk 0:02:04]}  c4 {[%clk 0:01:54]} 23. g5 {[%clk 0:02:03]}  hxg5 {[%clk 0:01:40]} 24. Nxg5 {[%clk 0:02:01]}  Nf6 {[%clk 0:01:40]} 25. Rxh8 {[%clk 0:01:59]}  Bxh8 {[%clk 0:01:40]} 26. Qf3 {[%clk 0:01:57]}  Qe7 {[%clk 0:01:39]} 27. Ng4 {[%clk 0:01:51]}  Nh5 {[%clk 0:01:28]} 28. Qe3 {[%clk 0:00:57]}  Kb8 {[%clk 0:01:19]} 29. g3 {[%clk 0:00:54]}  Rf8 {[%clk 0:01:10]} 30. f4 {[%clk 0:00:46]}  exf4 {[%clk 0:00:57]} 31. gxf4 {[%clk 0:00:47]}  Re8 {[%clk 0:00:57]} 32. Qf2 {[%clk 0:00:28]}  Nf6 {[%clk 0:00:50]} 33. Nxf6 {[%clk 0:00:25]}  Bxf6 {[%clk 0:00:50]} 34. Nf3 {[%clk 0:00:25]}  Rh8 {[%clk 0:00:46]} 35. Rxh8+ {[%clk 0:00:24]}  Bxh8 {[%clk 0:00:47]} 36. Nd4 {[%clk 0:00:25]}  Kc7 {[%clk 0:00:42]} 37. a4 {[%clk 0:00:24]}  bxa4 {[%clk 0:00:39]} 38. Bxa4 {[%clk 0:00:24]}  Qxe4+ {[%clk 0:00:38]} 39. Bc2 {[%clk 0:00:24]}  Bxd4 {[%clk 0:00:34]} 40. cxd4 {[%clk 0:00:18]}  Qh1+ {[%clk 0:00:34]} 41. Ka2 {[%clk 0:00:17]}  Qxd5 {[%clk 0:00:34]} 42. Qe3 {[%clk 0:00:14]}  Qa5+ {[%clk 0:00:26]} 43. Kb1 {[%clk 0:00:14]}  Kd8 {[%clk 0:00:26]} 44. f5 {[%clk 0:00:13]}  gxf5 {[%clk 0:00:22]} 45. Qg5+ {[%clk 0:00:13]}  Ke8 {[%clk 0:00:20]} 46. Bxf5 {[%clk 0:00:11]}  Qe1+ {[%clk 0:00:17]} 47. Ka2 {[%clk 0:00:11]}  Qe7 {[%clk 0:00:15]} 48. Qg8+ {[%clk 0:00:11]}  Qf8 {[%clk 0:00:15]} 49. Qg5 {[%clk 0:00:10]}  Bd5 {[%clk 0:00:14]} 50. Bg4 {[%clk 0:00:09]}  f5 {[%clk 0:00:11]} 51. Bxf5 {[%clk 0:00:07]}  c3+ {[%clk 0:00:11]} 52. b3 {[%clk 0:00:06]}  Qe7 {[%clk 0:00:10]} 53. Bg6+ {[%clk 0:00:06]}  Bf7 {[%clk 0:00:10]} 54. Bxf7+ {[%clk 0:00:05]}  Kxf7 {[%clk 0:00:10]} 55. Qf5+ {[%clk 0:00:05]}  Qf6 {[%clk 0:00:10]} 56. Qd7+ {[%clk 0:00:04]}  Kg6 {[%clk 0:00:11]} 57. Qg4+ {[%clk 0:00:04]}  Kh6 {[%clk 0:00:11]} 58. Qh3+ {[%clk 0:00:05]}  Kg5 {[%clk 0:00:10]} 59. Qxc3 {[%clk 0:00:05]}  Qf4 {[%clk 0:00:10]} 60. Qc4 {[%clk 0:00:05]}  Qd2+ {[%clk 0:00:08]} 61. Ka3 {[%clk 0:00:05]}  Qa5+ {[%clk 0:00:08]} 62. Kb2 {[%clk 0:00:05]}  Kf4 {[%clk 0:00:07]} 63. Qd3 {[%clk 0:00:03]}  Qd5 {[%clk 0:00:06]} 64. Qxa6 {[%clk 0:00:03]}  Qxd4+ {[%clk 0:00:07]} 65. Kc2 {[%clk 0:00:03]}  Ke3 {[%clk 0:00:06]} 66. Qc6 {[%clk 0:00:02]}  Qd2+ {[%clk 0:00:06]} 67. Kb1 {[%clk 0:00:03]}  d5 {[%clk 0:00:05]} 68. Qe6+ {[%clk 0:00:02]}  Kd4 {[%clk 0:00:05]} 69. Qf6+ {[%clk 0:00:03]}  Kc5 {[%clk 0:00:06]} 70. Qb2 {[%clk 0:00:02]}  Qe3 {[%clk 0:00:05]} 71. Qc2+ {[%clk 0:00:02]}  Kb4 {[%clk 0:00:05]} 72. Kb2 {[%clk 0:00:02]}  Qd4+ {[%clk 0:00:03]} 73. Ka2 {[%clk 0:00:03]}  Qc3 {[%clk 0:00:03]} 74. Qe2 {[%clk 0:00:02]}  Qxb3+ {[%clk 0:00:03]} 75. Ka1 {[%clk 0:00:01]}  Qc3+ {[%clk 0:00:03]} 76. Ka2 {[%clk 0:00:02]}  Qc4+ {[%clk 0:00:03]} 77. Qxc4+ {[%clk 0:00:01]}  Kxc4 {[%clk 0:00:04]} 78. Kb2 {[%clk 0:00:02]}  Kd3 {[%clk 0:00:04]} 79. Kc1 {[%clk 0:00:02]}  Ke2 {[%clk 0:00:05]} 80. Kc2 {[%clk 0:00:00]}  d4 {[%clk 0:00:06]} 0-1

[Event "December 5 Early 2023"]
[Site "https://www.chess.com"]
[Date "2023.12.05"]
[Round "11"]
[White "Agibileg, Uurtsaikh"]
[Black "Xu, Yi"]
[Result "0-1"]
[Board "29"]
[TimeControl "180+1"]
[WhiteFideId "4901606"]
[BlackFideId "8605564"]
[WhiteElo "2641"]
[BlackElo "2847"]
[WhiteTeam "MGL"]
[BlackTeam "CHN"]
[WhiteClock "0:00:02"]
[BlackClock "0:00:11"]

1. d4 {[%clk 0:03:00]}  Nf6 {[%clk 0:02:56]} 2. Nc3 {[%clk 0:03:00]}  d5 {[%clk 0:02:55]} 3. Bf4 {[%clk 0:03:01]}  e6 {[%clk 0:02:55]} 4. Nb5 {[%clk 0:03:00]}  Bb4+ {[%clk 0:02:54]} 5. c3 {[%clk 0:02:58]}  Ba5 {[%clk 0:02:54]} 6. h3 {[%clk 0:02:47]}  Nbd7 {[%clk 0:02:30]} 7. e3 {[%clk 0:02:44]}  a6 {[%clk 0:02:28]} 8. Na3 {[%clk 0:02:44]}  c6 {[%clk 0:02:12]} 9. Bd3 {[%clk 0:02:42]}  Bc7 {[%clk 0:02:12]} 10. Nf3 {[%clk 0:02:42]}  c5 {[%clk 0:02:07]} 11. O-O {[%clk 0:02:34]}  b5 {[%clk 0:02:05]} 12. Ne5 {[%clk 0:02:19]}  Nxe5 {[%clk 0:02:00]} 13. Bxe5 {[%clk 0:02:09]}  Bxe5 {[%clk 0:01:55]} 14. dxe5 {[%clk 0:02:09]}  Nd7 {[%clk 0:01:55]} 15. f4 {[%clk 0:02:09]}  Bb7 {[%clk 0:01:56]} 16. Qg4 {[%clk 0:02:02]}  g6 {[%clk 0:01:56]} 17. Nb1 {[%clk 0:01:56]}  h5 {[%clk 0:01:54]} 18. Qe2 {[%clk 0:01:55]}  Qc7 {[%clk 0:01:43]} 19. a4 {[%clk 0:01:54]}  c4 {[%clk 0:01:38]} 20. Bc2 {[%clk 0:01:54]}  Nc5 {[%clk 0:01:35]} 21. axb5 {[%clk 0:01:54]}  axb5 {[%clk 0:01:34]} 22. Rxa8+ {[%clk 0:01:54]}  Bxa8 {[%clk 0:01:35]} 23. Nd2 {[%clk 0:01:50]}  Qb6 {[%clk 0:01:33]} 24. Kh2 {[%clk 0:01:46]}  b4 {[%clk 0:01:33]} 25. e4 {[%clk 0:01:26]}  b3 {[%clk 0:01:28]} 26. Bb1 {[%clk 0:01:25]}  Na4 {[%clk 0:01:14]} 27. f5 {[%clk 0:01:09]}  gxf5 {[%clk 0:01:05]} 28. exf5 {[%clk 0:01:07]}  Nxb2 {[%clk 0:01:00]} 29. fxe6 {[%clk 0:01:07]}  Qxe6 {[%clk 0:01:00]} 30. Rf6 {[%clk 0:01:06]}  Qe7 {[%clk 0:00:58]} 31. Nf3 {[%clk 0:00:54]}  Na4 {[%clk 0:00:57]} 32. Nd4 {[%clk 0:00:51]}  Nxc3 {[%clk 0:00:55]} 33. Qe1 {[%clk 0:00:46]}  Ne4 {[%clk 0:00:50]} 34. Rf5 {[%clk 0:00:41]}  Rg8 {[%clk 0:00:35]} 35. Qa5 {[%clk 0:00:36]}  Bb7 {[%clk 0:00:32]} 36. Bxe4 {[%clk 0:00:34]}  dxe4 {[%clk 0:00:30]} 37. Qb5+ {[%clk 0:00:27]}  Qd7 {[%clk 0:00:28]} 38. Qxd7+ {[%clk 0:00:19]}  Kxd7 {[%clk 0:00:27]} 39. Rxf7+ {[%clk 0:00:20]}  Kc8 {[%clk 0:00:27]} 40. e6 {[%clk 0:00:17]}  b2 {[%clk 0:00:12]} 41. e7 {[%clk 0:00:17]}  Re8 {[%clk 0:00:12]} 42. Rf1 {[%clk 0:00:03]}  Rxe7 {[%clk 0:00:12]} 43. Rb1 {[%clk 0:00:03]}  c3 {[%clk 0:00:12]} 44. Ne2 {[%clk 0:00:03]}  Rc7 {[%clk 0:00:11]} 45. Kg3 {[%clk 0:00:03]}  Ba6 {[%clk 0:00:10]} 46. Nxc3 {[%clk 0:00:03]}  Rxc3+ {[%clk 0:00:10]} 47. Kf4 {[%clk 0:00:03]}  Rb3 {[%clk 0:00:10]} 48. Kxe4 {[%clk 0:00:02]}  Bd3+ {[%clk 0:00:11]} 0-1

[Event "December 5 Early 2023"]
[Site "https://www.chess.com"]
[Date "2023.12.05"]
[Round "11"]
[White "Shuvalova, Polina"]
[Black "Dyachuk, Artem"]
[Result "1-0"]
[Board "30"]
[TimeControl "180+1"]
[WhiteFideId "24171760"]
[BlackFideId "34107924"]
[WhiteElo "2841"]
[BlackElo "2604"]
[WhiteTeam "RUS"]
[BlackTeam "UKR"]
[WhiteClock "0:00:39"]
[BlackClock "0:00:04"]

1. e4 {[%clk 0:03:00]}  e5 {[%clk 0:02:47]} 2. Nf3 {[%clk 0:03:00]}  Nc6 {[%clk 0:02:46]} 3. Nc3 {[%clk 0:03:01]}  Nf6 {[%clk 0:02:44]} 4. Bb5 {[%clk 0:03:02]}  Nd4 {[%clk 0:02:44]} 5. O-O {[%clk 0:03:02]}  Nxb5 {[%clk 0:02:41]} 6. Nxb5 {[%clk 0:03:02]}  d6 {[%clk 0:02:42]} 7. d4 {[%clk 0:03:02]}  a6 {[%clk 0:02:38]} 8. Nc3 {[%clk 0:02:58]}  exd4 {[%clk 0:02:38]} 9. Qxd4 {[%clk 0:02:58]}  Be7 {[%clk 0:02:36]} 10. h3 {[%clk 0:02:58]}  O-O {[%clk 0:02:35]} 11. Bf4 {[%clk 0:02:58]}  Nd7 {[%clk 0:02:33]} 12. Rad1 {[%clk 0:02:57]}  Nc5 {[%clk 0:02:32]} 13. Bg3 {[%clk 0:02:49]}  Be6 {[%clk 0:02:21]} 14. e5 {[%clk 0:02:39]}  dxe5 {[%clk 0:02:18]} 15. Qxe5 {[%clk 0:02:39]}  Bd6 {[%clk 0:02:05]} 16. Qe3 {[%clk 0:02:35]}  Re8 {[%clk 0:02:00]} 17. Bxd6 {[%clk 0:02:34]}  cxd6 {[%clk 0:02:00]} 18. Qd4 {[%clk 0:02:30]}  Qb6 {[%clk 0:01:51]} 19. Qxd6 {[%clk 0:02:26]}  Qxb2 {[%clk 0:01:02]} 20. Qxc5 {[%clk 0:02:26]}  Rac8 {[%clk 0:01:02]} 21. Na4 {[%clk 0:02:26]}  Qxa2 {[%clk 0:01:02]} 22. Qd4 {[%clk 0:01:42]}  Rc4 {[%clk 0:00:56]} 23. Ra1 {[%clk 0:01:14]}  Qxc2 {[%clk 0:00:30]} 24. Rfc1 {[%clk 0:01:13]}  Qxc1+ {[%clk 0:00:19]} 25. Rxc1 {[%clk 0:01:13]}  Rxc1+ {[%clk 0:00:20]} 26. Kh2 {[%clk 0:01:13]}  Rc4 {[%clk 0:00:20]} 27. Qa1 {[%clk 0:01:10]}  Rc2 {[%clk 0:00:19]} 28. Kg3 {[%clk 0:01:06]}  h6 {[%clk 0:00:18]} 29. Qb1 {[%clk 0:00:54]}  Rc7 {[%clk 0:00:18]} 30. Qb6 {[%clk 0:00:54]}  Rec8 {[%clk 0:00:16]} 31. Nd4 {[%clk 0:00:52]}  Bd5 {[%clk 0:00:12]} 32. Qd6 {[%clk 0:00:50]}  Be4 {[%clk 0:00:10]} 33. f3 {[%clk 0:00:49]}  Bg6 {[%clk 0:00:02]} 34. Nb6 {[%clk 0:00:49]}  Rc6 {[%clk 0:00:02]} 35. Nxc6 {[%clk 0:00:47]}  Rxc6 {[%clk 0:00:03]} 36. Qd8+ {[%clk 0:00:47]}  Kh7 {[%clk 0:00:04]} 37. Nd7 {[%clk 0:00:46]}  h5 {[%clk 0:00:04]} 38. Nf8+ {[%clk 0:00:45]}  Kg8 {[%clk 0:00:03]} 39. Nxg6+ {[%clk 0:00:44]}  Kh7 {[%clk 0:00:03]} 40. Nf8+ {[%clk 0:00:44]}  Kh6 {[%clk 0:00:04]} 41. Qd2+ {[%clk 0:00:42]}  g5 {[%clk 0:00:04]} 42. h4 {[%clk 0:00:42]}  f6 {[%clk 0:00:03]} 43. Qd7 {[%clk 0:00:41]}  Rc7 {[%clk 0:00:02]} 44. Qxc7 {[%clk 0:00:40]}  gxh4+ {[%clk 0:00:03]} 45. Kxh4 {[%clk 0:00:39]}  a5 {[%clk 0:00:04]} 46. Qh7# {[%clk 0:00:39]} 1-0

[Event "December 5 Early 2023"]
[Site "https://www.chess.com"]
[Date "2023.12.05"]
[Round "11"]
[White "Wagh Suyog"]
[Black "Osmak, Yuliia"]
[Result "1-0"]
[Board "34"]
[TimeControl "180+1"]
[WhiteFideId "25071688"]
[BlackFideId "14101602"]
[WhiteElo "2768"]
[BlackElo "2568"]
[WhiteTeam "IND"]
[BlackTeam "UKR"]
[WhiteClock "0:00:44"]
[BlackClock "0:00:00"]

1. e4 {[%clk 0:02:53]}  c6 {[%clk 0:02:59]} 2. d4 {[%clk 0:02:49]}  d5 {[%clk 0:03:00]} 3. e5 {[%clk 0:02:50]}  Bf5 {[%clk 0:02:59]} 4. h4 {[%clk 0:02:49]}  h5 {[%clk 0:02:59]} 5. Bd3 {[%clk 0:02:49]}  Bxd3 {[%clk 0:02:54]} 6. Qxd3 {[%clk 0:02:50]}  Qa5+ {[%clk 0:02:54]} 7. Nd2 {[%clk 0:02:42]}  e6 {[%clk 0:02:53]} 8. Nf3 {[%clk 0:02:40]}  Nh6 {[%clk 0:02:51]} 9. O-O {[%clk 0:02:40]}  Nf5 {[%clk 0:02:49]} 10. a4 {[%clk 0:02:40]}  Be7 {[%clk 0:02:45]} 11. g3 {[%clk 0:02:40]}  Qa6 {[%clk 0:02:36]} 12. c4 {[%clk 0:02:39]}  Nd7 {[%clk 0:02:24]} 13. b3 {[%clk 0:02:35]}  c5 {[%clk 0:02:23]} 14. Qb1 {[%clk 0:02:16]}  dxc4 {[%clk 0:02:14]} 15. d5 {[%clk 0:02:16]}  c3 {[%clk 0:02:07]} 16. dxe6 {[%clk 0:02:01]}  fxe6 {[%clk 0:01:57]} 17. Nc4 {[%clk 0:02:02]}  O-O {[%clk 0:01:56]} 18. Bg5 {[%clk 0:01:53]}  Qc6 {[%clk 0:01:22]} 19. Qd3 {[%clk 0:01:43]}  Rad8 {[%clk 0:00:57]} 20. Bxe7 {[%clk 0:01:32]}  Nxe7 {[%clk 0:00:55]} 21. Ng5 {[%clk 0:01:32]}  Nf5 {[%clk 0:00:39]} 22. Qxc3 {[%clk 0:01:28]}  Nd4 {[%clk 0:00:35]} 23. Qe3 {[%clk 0:01:10]}  Rf5 {[%clk 0:00:18]} 24. Rad1 {[%clk 0:01:03]}  Nxe5 {[%clk 0:00:14]} 25. Nxe5 {[%clk 0:00:59]}  Qd5 {[%clk 0:00:12]} 26. f4 {[%clk 0:00:54]}  Rdf8 {[%clk 0:00:08]} 27. Ngf3 {[%clk 0:00:53]}  Rxe5 {[%clk 0:00:04]} 28. Nxe5 {[%clk 0:00:48]}  b6 {[%clk 0:00:02]} 29. Rd3 {[%clk 0:00:45]}  Qb7 {[%clk 0:00:01]} 30. Rxd4 {[%clk 0:00:44]}  cxd4 {[%clk 0:00:01]} 31. Qxd4 {[%clk 0:00:45]}  Qc6 {[%clk 0:00:00]} 32. Qc4 {[%clk 0:00:44]} 1-0

[Event "December 5 Early 2023"]
[Site "https://www.chess.com"]
[Date "2023.12.05"]
[Round "11"]
[White "Ambartsumova, Karina"]
[Black "Demchenko, Anton"]
[Result "0-1"]
[Board "39"]
[TimeControl "180+1"]
[WhiteFideId "4166299"]
[BlackFideId "4160258"]
[WhiteElo "2636"]
[BlackElo "2886"]
[WhiteTeam "RUS"]
[BlackTeam "SLO"]
[WhiteClock "0:00:02"]
[BlackClock "0:00:27"]

1. d4 {[%clk 0:03:00]}  Nf6 {[%clk 0:02:50]} 2. c4 {[%clk 0:03:01]}  d6 {[%clk 0:02:50]} 3. Nf3 {[%clk 0:03:01]}  Nc6 {[%clk 0:02:50]} 4. Nc3 {[%clk 0:02:56]}  e5 {[%clk 0:02:49]} 5. d5 {[%clk 0:02:57]}  Ne7 {[%clk 0:02:49]} 6. e4 {[%clk 0:02:57]}  Ng6 {[%clk 0:02:50]} 7. Be2 {[%clk 0:02:57]}  Be7 {[%clk 0:02:51]} 8. O-O {[%clk 0:02:57]}  O-O {[%clk 0:02:51]} 9. Ne1 {[%clk 0:02:58]}  h6 {[%clk 0:02:47]} 10. Nd3 {[%clk 0:02:58]}  Nh7 {[%clk 0:02:43]} 11. Bg4 {[%clk 0:02:46]}  Bg5 {[%clk 0:02:41]} 12. Bxc8 {[%clk 0:02:46]}  Qxc8 {[%clk 0:02:41]} 13. Qh5 {[%clk 0:02:44]}  Nf6 {[%clk 0:02:35]} 14. Qe2 {[%clk 0:02:44]}  Nh7 {[%clk 0:02:20]} 15. Bxg5 {[%clk 0:02:17]}  Nxg5 {[%clk 0:02:19]} 16. c5 {[%clk 0:02:15]}  Qd7 {[%clk 0:02:11]} 17. Rac1 {[%clk 0:02:14]}  f5 {[%clk 0:02:05]} 18. f3 {[%clk 0:02:03]}  Rf7 {[%clk 0:01:59]} 19. b4 {[%clk 0:01:58]}  Raf8 {[%clk 0:01:37]} 20. exf5 {[%clk 0:01:25]}  Rxf5 {[%clk 0:01:30]} 21. Ne4 {[%clk 0:01:08]}  Ne7 {[%clk 0:01:24]} 22. cxd6 {[%clk 0:01:04]}  cxd6 {[%clk 0:01:25]} 23. Rfd1 {[%clk 0:01:04]}  Qd8 {[%clk 0:01:16]} 24. a4 {[%clk 0:00:53]}  Ng6 {[%clk 0:01:06]} 25. a5 {[%clk 0:00:38]}  Nh4 {[%clk 0:01:06]} 26. Ng3 {[%clk 0:00:29]}  R5f7 {[%clk 0:01:02]} 27. Rf1 {[%clk 0:00:28]}  Qd7 {[%clk 0:00:55]} 28. Nb2 {[%clk 0:00:23]}  Ng6 {[%clk 0:00:47]} 29. Nd3 {[%clk 0:00:22]}  Qb5 {[%clk 0:00:45]} 30. Qe3 {[%clk 0:00:15]}  Qxd5 {[%clk 0:00:41]} 31. Nf2 {[%clk 0:00:14]}  Nf4 {[%clk 0:00:39]} 32. Nfe4 {[%clk 0:00:13]}  Nge6 {[%clk 0:00:36]} 33. Rfd1 {[%clk 0:00:12]}  Nd4 {[%clk 0:00:36]} 34. Nc3 {[%clk 0:00:10]}  Qe6 {[%clk 0:00:32]} 35. b5 {[%clk 0:00:10]}  Qg6 {[%clk 0:00:32]} 36. Nce4 {[%clk 0:00:10]}  h5 {[%clk 0:00:32]} 37. Rd2 {[%clk 0:00:08]}  h4 {[%clk 0:00:30]} 38. Nf1 {[%clk 0:00:09]}  h3 {[%clk 0:00:29]} 39. g3 {[%clk 0:00:09]}  Nd5 {[%clk 0:00:28]} 40. Qa3 {[%clk 0:00:04]}  Nxf3+ {[%clk 0:00:28]} 41. Kh1 {[%clk 0:00:02]}  Qxe4 {[%clk 0:00:27]} 0-1

[Event "December 5 Early 2023"]
[Site "https://www.chess.com"]
[Date "2023.12.05"]
[Round "11"]
[White "IM_ArthurDW08"]
[Black "Aswath, S"]
[Result "1-0"]
[Board "42"]
[TimeControl "180+1"]
[BlackFideId "46694919"]
[WhiteElo "2805"]
[BlackElo "2611"]
[BlackTeam "IND"]
[WhiteClock "0:01:30"]
[BlackClock "0:00:40"]

1. e4 {[%clk 0:03:00]}  c5 {[%clk 0:02:58]} 2. Nf3 {[%clk 0:02:51]}  d6 {[%clk 0:02:58]} 3. d4 {[%clk 0:02:51]}  cxd4 {[%clk 0:02:58]} 4. Nxd4 {[%clk 0:02:52]}  Nf6 {[%clk 0:02:57]} 5. Nc3 {[%clk 0:02:52]}  a6 {[%clk 0:02:58]} 6. Bd2 {[%clk 0:02:47]}  e6 {[%clk 0:02:51]} 7. g4 {[%clk 0:02:46]}  h6 {[%clk 0:02:49]} 8. h4 {[%clk 0:02:44]}  Be7 {[%clk 0:02:48]} 9. Rg1 {[%clk 0:02:43]}  b5 {[%clk 0:02:48]} 10. g5 {[%clk 0:02:41]}  hxg5 {[%clk 0:02:48]} 11. hxg5 {[%clk 0:02:42]}  Nh5 {[%clk 0:02:46]} 12. g6 {[%clk 0:02:39]}  Nf6 {[%clk 0:02:13]} 13. gxf7+ {[%clk 0:02:36]}  Kxf7 {[%clk 0:02:14]} 14. Qf3 {[%clk 0:02:33]}  Bb7 {[%clk 0:02:05]} 15. Rxg7+ {[%clk 0:02:32]}  Kxg7 {[%clk 0:01:59]} 16. Nxe6+ {[%clk 0:02:32]}  Kf7 {[%clk 0:01:59]} 17. Nxd8+ {[%clk 0:02:32]}  Bxd8 {[%clk 0:02:00]} 18. Nd5 {[%clk 0:02:04]}  Re8 {[%clk 0:01:59]} 19. O-O-O {[%clk 0:01:59]}  Nd7 {[%clk 0:01:56]} 20. Bc3 {[%clk 0:01:49]}  Rc8 {[%clk 0:01:52]} 21. Bxf6 {[%clk 0:01:42]}  Nxf6 {[%clk 0:01:50]} 22. Nxf6 {[%clk 0:01:42]}  Bxf6 {[%clk 0:01:51]} 23. Rxd6 {[%clk 0:01:42]}  Rxc2+ {[%clk 0:01:45]} 24. Kd1 {[%clk 0:01:34]}  Bxe4 {[%clk 0:00:46]} 25. Qxf6+ {[%clk 0:01:31]}  Kg8 {[%clk 0:00:46]} 26. Qg5+ {[%clk 0:01:31]}  Kf8 {[%clk 0:00:44]} 27. Rf6+ {[%clk 0:01:31]}  Ke7 {[%clk 0:00:44]} 28. Rc6+ {[%clk 0:01:31]}  Kf7 {[%clk 0:00:40]} 29. Rxc2 {[%clk 0:01:30]} 1-0

[Event "December 5 Early 2023"]
[Site "https://www.chess.com"]
[Date "2023.12.05"]
[Round "11"]
[White "Shubenkova, Veronika"]
[Black "Starozhilov, Leonid"]
[Result "0-1"]
[Board "45"]
[TimeControl "180+1"]
[WhiteFideId "44124040"]
[BlackFideId "14106752"]
[WhiteElo "2596"]
[BlackElo "2744"]
[WhiteTeam "RUS"]
[BlackTeam "UKR"]
[WhiteClock "0:00:04"]
[BlackClock "0:00:05"]

1. d4 {[%clk 0:02:59]}  Nf6 {[%clk 0:03:00]} 2. e3 {[%clk 0:03:00]}  g6 {[%clk 0:02:59]} 3. f4 {[%clk 0:03:00]}  Bg7 {[%clk 0:03:00]} 4. Nf3 {[%clk 0:03:01]}  d6 {[%clk 0:02:56]} 5. c3 {[%clk 0:03:02]}  O-O {[%clk 0:02:54]} 6. Bd3 {[%clk 0:03:02]}  Nc6 {[%clk 0:02:53]} 7. O-O {[%clk 0:03:02]}  e5 {[%clk 0:02:54]} 8. Bc2 {[%clk 0:03:02]}  exf4 {[%clk 0:02:51]} 9. exf4 {[%clk 0:03:02]}  Re8 {[%clk 0:02:41]} 10. Nbd2 {[%clk 0:03:02]}  Nd5 {[%clk 0:02:30]} 11. Ne4 {[%clk 0:03:00]}  Bf5 {[%clk 0:02:30]} 12. Ng3 {[%clk 0:02:58]}  Bxc2 {[%clk 0:02:28]} 13. Qxc2 {[%clk 0:02:57]}  Ne3 {[%clk 0:02:26]} 14. Bxe3 {[%clk 0:02:57]}  Rxe3 {[%clk 0:02:27]} 15. f5 {[%clk 0:02:57]}  Qe7 {[%clk 0:02:23]} 16. Rae1 {[%clk 0:02:50]}  Re8 {[%clk 0:02:22]} 17. Qb1 {[%clk 0:02:34]}  Na5 {[%clk 0:02:01]} 18. Rxe3 {[%clk 0:02:32]}  Qxe3+ {[%clk 0:02:01]} 19. Kh1 {[%clk 0:02:32]}  Qe7 {[%clk 0:01:43]} 20. Nd2 {[%clk 0:02:25]}  d5 {[%clk 0:01:34]} 21. b4 {[%clk 0:02:21]}  Nc4 {[%clk 0:01:28]} 22. Nxc4 {[%clk 0:02:20]}  dxc4 {[%clk 0:01:29]} 23. fxg6 {[%clk 0:02:20]}  hxg6 {[%clk 0:01:29]} 24. Qc2 {[%clk 0:01:55]}  c6 {[%clk 0:01:25]} 25. h3 {[%clk 0:01:49]}  f5 {[%clk 0:01:25]} 26. Rf2 {[%clk 0:01:32]}  Bh6 {[%clk 0:01:23]} 27. Re2 {[%clk 0:01:23]}  Qf7 {[%clk 0:01:18]} 28. Kg1 {[%clk 0:00:58]}  Be3+ {[%clk 0:01:08]} 29. Kh1 {[%clk 0:00:55]}  Bf4 {[%clk 0:00:46]} 30. Nf1 {[%clk 0:00:46]}  b5 {[%clk 0:00:42]} 31. Qd1 {[%clk 0:00:44]}  g5 {[%clk 0:00:31]} 32. Qe1 {[%clk 0:00:41]}  Rxe2 {[%clk 0:00:31]} 33. Qxe2 {[%clk 0:00:42]}  Kf8 {[%clk 0:00:23]} 34. Qf3 {[%clk 0:00:33]}  Qd5 {[%clk 0:00:21]} 35. Qh5 {[%clk 0:00:32]}  Kg7 {[%clk 0:00:18]} 36. Qe8 {[%clk 0:00:31]}  Qe4 {[%clk 0:00:17]} 37. Qd7+ {[%clk 0:00:29]}  Kg6 {[%clk 0:00:17]} 38. Kg1 {[%clk 0:00:16]}  a6 {[%clk 0:00:15]} 39. Qc8 {[%clk 0:00:09]}  Be3+ {[%clk 0:00:11]} 40. Nxe3 {[%clk 0:00:07]}  Qxe3+ {[%clk 0:00:12]} 41. Kh1 {[%clk 0:00:07]}  Qc1+ {[%clk 0:00:10]} 42. Kh2 {[%clk 0:00:08]}  Qf4+ {[%clk 0:00:11]} 43. Kh1 {[%clk 0:00:08]}  g4 {[%clk 0:00:07]} 44. Qxc6+ {[%clk 0:00:07]}  Kg5 {[%clk 0:00:06]} 45. Qe8 {[%clk 0:00:04]}  Qf1+ {[%clk 0:00:04]} 46. Kh2 {[%clk 0:00:04]}  g3+ {[%clk 0:00:05]} 47. Kxg3 {[%clk 0:00:04]}  Qf4# {[%clk 0:00:05]} 0-1

[Event "December 5 Early 2023"]
[Site "https://www.chess.com"]
[Date "2023.12.05"]
[Round "11"]
[White "Ozates, Tuna"]
[Black "Sahakyan, Aleks"]
[Result "1-0"]
[Board "47"]
[TimeControl "180+1"]
[WhiteFideId "6354521"]
[BlackFideId "13316338"]
[WhiteElo "2556"]
[BlackElo "2727"]
[WhiteTeam "TUR"]
[BlackTeam "ARM"]
[WhiteClock "0:02:03"]
[BlackClock "0:01:35"]

1. e4 {[%clk 0:03:00]}  c5 {[%clk 0:02:58]} 2. Nf3 {[%clk 0:03:01]}  Nc6 {[%clk 0:02:59]} 3. Bb5 {[%clk 0:03:01]}  g6 {[%clk 0:02:58]} 4. Bxc6 {[%clk 0:03:01]}  dxc6 {[%clk 0:02:57]} 5. d3 {[%clk 0:03:01]}  Bg7 {[%clk 0:02:56]} 6. h3 {[%clk 0:03:01]}  Nf6 {[%clk 0:02:57]} 7. Nc3 {[%clk 0:03:01]}  Nd7 {[%clk 0:02:57]} 8. Be3 {[%clk 0:03:02]}  e5 {[%clk 0:02:57]} 9. Qd2 {[%clk 0:03:02]}  h6 {[%clk 0:02:58]} 10. O-O {[%clk 0:03:01]}  b6 {[%clk 0:02:58]} 11. Nh2 {[%clk 0:03:01]}  Nf8 {[%clk 0:02:59]} 12. f4 {[%clk 0:03:01]}  exf4 {[%clk 0:03:00]} 13. Bxf4 {[%clk 0:03:02]}  Ne6 {[%clk 0:03:00]} 14. Bg3 {[%clk 0:02:58]}  Nd4 {[%clk 0:03:00]} 15. Rae1 {[%clk 0:02:44]}  O-O {[%clk 0:03:00]} 16. e5 {[%clk 0:02:43]}  Bf5 {[%clk 0:02:39]} 17. Ng4 {[%clk 0:02:40]}  Qg5 {[%clk 0:02:35]} 18. Bf4 {[%clk 0:02:35]}  Qh4 {[%clk 0:02:31]} 19. Nxh6+ {[%clk 0:02:28]}  Bxh6 {[%clk 0:02:29]} 20. Bxh6 {[%clk 0:02:29]}  Rfe8 {[%clk 0:02:19]} 21. Bg5 {[%clk 0:02:27]}  Qh5 {[%clk 0:02:12]} 22. Bf6 {[%clk 0:02:23]}  Re6 {[%clk 0:01:40]} 23. Rf4 {[%clk 0:02:11]}  Qh6 {[%clk 0:01:35]} 24. Rh4 {[%clk 0:02:03]} 1-0